[Event "Titled Tuesday Blitz August 15 Late 2023"]
[White "Altman, Joshua"]
[Black "Itkis, Boris"]
[WhiteFideId "426210"]
[BlackFideId "1209167"]
[WhiteElo "2596"]
[BlackElo "2484"]
[Result "1-0"]
[Round "7"]
[TimeControl "180+1"]
[Date "2023.08.15"]
[WhiteClock "0:01:52"]
[BlackClock "0:00:39"]
[Board "66"]

1. Nf3 {[%clk 0:03:00]}  d5 {[%clk 0:02:59]} 2. d4 {[%clk 0:02:59]}  Nf6 {[%clk 0:02:58]} 3. c4 {[%clk 0:02:59]}  e6 {[%clk 0:02:57]} 4. Nc3 {[%clk 0:02:59]}  Be7 {[%clk 0:02:57]} 5. cxd5 {[%clk 0:02:59]}  exd5 {[%clk 0:02:58]} 6. Bg5 {[%clk 0:02:59]}  O-O {[%clk 0:02:58]} 7. Qc2 {[%clk 0:02:59]}  h6 {[%clk 0:02:58]} 8. Bh4 {[%clk 0:02:59]}  c6 {[%clk 0:02:56]} 9. e3 {[%clk 0:02:59]}  Re8 {[%clk 0:02:55]} 10. Bd3 {[%clk 0:02:59]}  Nbd7 {[%clk 0:02:55]} 11. O-O {[%clk 0:02:58]}  Nf8 {[%clk 0:02:56]} 12. h3 {[%clk 0:02:55]}  Be6 {[%clk 0:02:44]} 13. Ne5 {[%clk 0:02:53]}  N6d7 {[%clk 0:02:41]} 14. Bxe7 {[%clk 0:02:50]}  Qxe7 {[%clk 0:02:42]} 15. f4 {[%clk 0:02:50]}  Nxe5 {[%clk 0:02:37]} 16. fxe5 {[%clk 0:02:42]}  Rac8 {[%clk 0:02:31]} 17. Qf2 {[%clk 0:02:38]}  c5 {[%clk 0:02:29]} 18. Nb5 {[%clk 0:02:37]}  Red8 {[%clk 0:02:17]} 19. Nxa7 {[%clk 0:02:31]}  Ra8 {[%clk 0:02:12]} 20. Nb5 {[%clk 0:02:32]}  c4 {[%clk 0:02:04]} 21. Bf5 {[%clk 0:02:22]}  Bxf5 {[%clk 0:01:49]} 22. Qxf5 {[%clk 0:02:23]}  Rd7 {[%clk 0:01:47]} 23. Nd6 {[%clk 0:02:22]}  Ne6 {[%clk 0:01:42]} 24. Qh5 {[%clk 0:02:14]}  Qg5 {[%clk 0:01:38]} 25. Qf3 {[%clk 0:02:09]}  f6 {[%clk 0:01:26]} 26. Qxd5 {[%clk 0:02:03]}  Qxe3+ {[%clk 0:01:22]} 27. Kh1 {[%clk 0:02:03]}  Re8 {[%clk 0:01:15]} 28. exf6 {[%clk 0:01:56]}  gxf6 {[%clk 0:00:39]} 29. Rae1 {[%clk 0:01:52]} 1-0


[Site "https://www.chess.com"]

[Event "Titled Tuesday Blitz August 15 Late 2023"]
[White "Isajevsky, Anton"]
[Black "Bazilius, Augustinas"]
[WhiteFideId "4142500"]
[BlackFideId "12832251"]
[WhiteElo "2591"]
[BlackElo "2471"]
[Result "1/2-1/2"]
[Round "7"]
[TimeControl "180+1"]
[Date "2023.08.15"]
[WhiteClock "0:00:02"]
[BlackClock "0:00:24"]
[Board "68"]

1. c4 {[%clk 0:03:00]}  Nf6 {[%clk 0:02:58]} 2. Nc3 {[%clk 0:03:00]}  c5 {[%clk 0:02:59]} 3. Nf3 {[%clk 0:03:00]}  d5 {[%clk 0:03:00]} 4. cxd5 {[%clk 0:03:00]}  Nxd5 {[%clk 0:03:01]} 5. g3 {[%clk 0:03:01]}  Nc6 {[%clk 0:03:00]} 6. Bg2 {[%clk 0:03:01]}  Nc7 {[%clk 0:03:01]} 7. Qa4 {[%clk 0:03:00]}  f6 {[%clk 0:02:56]} 8. d4 {[%clk 0:02:59]}  Bd7 {[%clk 0:02:19]} 9. dxc5 {[%clk 0:02:53]}  e5 {[%clk 0:02:14]} 10. O-O {[%clk 0:02:52]}  Bxc5 {[%clk 0:02:11]} 11. Rd1 {[%clk 0:02:35]}  Qe7 {[%clk 0:02:07]} 12. Ne4 {[%clk 0:02:24]}  O-O-O {[%clk 0:01:52]} 13. Nxc5 {[%clk 0:02:07]}  Qxc5 {[%clk 0:01:51]} 14. Be3 {[%clk 0:02:08]}  Qb5 {[%clk 0:01:45]} 15. Qxb5 {[%clk 0:01:48]}  Nxb5 {[%clk 0:01:45]} 16. Rac1 {[%clk 0:01:43]}  Kb8 {[%clk 0:01:42]} 17. a4 {[%clk 0:01:34]}  Nc7 {[%clk 0:01:42]} 18. Nd2 {[%clk 0:01:12]}  Ne6 {[%clk 0:01:40]} 19. Kf1 {[%clk 0:01:04]}  Ned4 {[%clk 0:01:35]} 20. Bxd4 {[%clk 0:00:48]}  Nxd4 {[%clk 0:01:36]} 21. e3 {[%clk 0:00:47]}  Ne6 {[%clk 0:01:32]} 22. b3 {[%clk 0:00:39]}  Rc8 {[%clk 0:01:20]} 23. Nc4 {[%clk 0:00:31]}  Bc6 {[%clk 0:01:15]} 24. Bh3 {[%clk 0:00:26]}  Rce8 {[%clk 0:01:14]} 25. Rd6 {[%clk 0:00:21]}  Ng5 {[%clk 0:01:14]} 26. Bd7 {[%clk 0:00:19]}  Bxd7 {[%clk 0:01:12]} 27. Rxd7 {[%clk 0:00:20]}  Rd8 {[%clk 0:01:07]} 28. Rcd1 {[%clk 0:00:20]}  Kc8 {[%clk 0:01:05]} 29. R7d6 {[%clk 0:00:13]}  Kc7 {[%clk 0:01:03]} 30. Ke2 {[%clk 0:00:12]}  Ne4 {[%clk 0:01:01]} 31. Rxd8 {[%clk 0:00:11]}  Rxd8 {[%clk 0:01:01]} 32. Rc1 {[%clk 0:00:09]}  Kd7 {[%clk 0:00:59]} 33. b4 {[%clk 0:00:07]}  Ke6 {[%clk 0:00:58]} 34. f3 {[%clk 0:00:06]}  Nd6 {[%clk 0:00:56]} 35. Rd1 {[%clk 0:00:04]}  Rd7 {[%clk 0:00:52]} 36. Nxd6 {[%clk 0:00:03]}  Rxd6 {[%clk 0:00:53]} 37. Rxd6+ {[%clk 0:00:03]}  Kxd6 {[%clk 0:00:54]} 38. Kd3 {[%clk 0:00:04]}  Kd5 {[%clk 0:00:49]} 39. e4+ {[%clk 0:00:04]}  Kd6 {[%clk 0:00:47]} 40. Kc4 {[%clk 0:00:04]}  Kc6 {[%clk 0:00:46]} 41. h4 {[%clk 0:00:03]}  g5 {[%clk 0:00:44]} 42. h5 {[%clk 0:00:02]}  b6 {[%clk 0:00:41]} 43. b5+ {[%clk 0:00:01]}  Kd6 {[%clk 0:00:41]} 44. g4 {[%clk 0:00:01]}  Ke6 {[%clk 0:00:37]} 45. Kb4 {[%clk 0:00:01]}  Kd6 {[%clk 0:00:24]} 46. Kc4 {[%clk 0:00:02]} 1/2-1/2


[Site "https://www.chess.com"]

[Event "Titled Tuesday Blitz August 15 Late 2023"]
[White "Kubatko, Ivan"]
[Black "Przybylski, Wojciech"]
[WhiteFideId "24111473"]
[BlackFideId "1117599"]
[WhiteElo "2449"]
[BlackElo "2563"]
[Result "1/2-1/2"]
[Round "7"]
[TimeControl "180+1"]
[Date "2023.08.15"]
[WhiteClock "0:00:16"]
[BlackClock "0:00:34"]
[Board "72"]

1. e4 {[%clk 0:03:00]}  c5 {[%clk 0:02:54]} 2. c3 {[%clk 0:02:56]}  Nf6 {[%clk 0:02:50]} 3. e5 {[%clk 0:02:56]}  Nd5 {[%clk 0:02:50]} 4. g3 {[%clk 0:02:57]}  h5 {[%clk 0:02:48]} 5. Bg2 {[%clk 0:02:56]}  e6 {[%clk 0:02:47]} 6. d4 {[%clk 0:02:55]}  cxd4 {[%clk 0:02:46]} 7. Qxd4 {[%clk 0:02:53]}  Nc6 {[%clk 0:02:46]} 8. Qe4 {[%clk 0:02:53]}  h4 {[%clk 0:02:44]} 9. a3 {[%clk 0:02:35]}  d6 {[%clk 0:02:38]} 10. c4 {[%clk 0:02:31]}  Nb6 {[%clk 0:02:26]} 11. exd6 {[%clk 0:02:26]}  Bxd6 {[%clk 0:02:24]} 12. Nc3 {[%clk 0:02:23]}  hxg3 {[%clk 0:02:22]} 13. hxg3 {[%clk 0:02:11]}  Rxh1 {[%clk 0:02:19]} 14. Bxh1 {[%clk 0:02:12]}  Bd7 {[%clk 0:01:57]} 15. b4 {[%clk 0:02:06]}  Qf6 {[%clk 0:01:49]} 16. Bd2 {[%clk 0:01:45]}  Be5 {[%clk 0:01:35]} 17. Nge2 {[%clk 0:01:42]}  Qf5 {[%clk 0:01:08]} 18. f4 {[%clk 0:01:20]}  Qxe4 {[%clk 0:01:02]} 19. Bxe4 {[%clk 0:01:14]}  Bf6 {[%clk 0:00:58]} 20. Bd3 {[%clk 0:00:46]}  O-O-O {[%clk 0:00:53]} 21. O-O-O {[%clk 0:00:45]}  Be8 {[%clk 0:00:44]} 22. Kc2 {[%clk 0:00:42]}  Nd4+ {[%clk 0:00:35]} 23. Nxd4 {[%clk 0:00:42]}  Bxd4 {[%clk 0:00:34]} 24. Be1 {[%clk 0:00:32]}  a6 {[%clk 0:00:32]} 25. c5 {[%clk 0:00:28]}  Nd5 {[%clk 0:00:28]} 26. Kb2 {[%clk 0:00:09]}  Ba4 {[%clk 0:00:14]} 27. Rc1 {[%clk 0:00:09]}  Ne3 {[%clk 0:00:12]} 28. Be4 {[%clk 0:00:07]}  f5 {[%clk 0:00:11]} 29. Bf3 {[%clk 0:00:07]}  Be8 {[%clk 0:00:10]} 30. Kb3 {[%clk 0:00:06]}  Bf7 {[%clk 0:00:09]} 31. a4 {[%clk 0:00:05]}  e5+ {[%clk 0:00:09]} 32. Kb2 {[%clk 0:00:02]}  Nc4+ {[%clk 0:00:08]} 33. Kc2 {[%clk 0:00:03]}  e4 {[%clk 0:00:09]} 34. Be2 {[%clk 0:00:03]}  Ne3+ {[%clk 0:00:09]} 35. Kb2 {[%clk 0:00:03]}  Nd5 {[%clk 0:00:09]} 36. Kc2 {[%clk 0:00:03]}  Nxb4+ {[%clk 0:00:09]} 37. Kb1 {[%clk 0:00:03]}  Nc6 {[%clk 0:00:08]} 38. Na2 {[%clk 0:00:03]}  Bb3 {[%clk 0:00:07]} 39. Nb4 {[%clk 0:00:02]}  Bxa4 {[%clk 0:00:07]} 40. Nxc6 {[%clk 0:00:02]}  Bxc6 {[%clk 0:00:07]} 41. g4 {[%clk 0:00:03]}  Be3 {[%clk 0:00:07]} 42. Rc2 {[%clk 0:00:03]}  g6 {[%clk 0:00:07]} 43. gxf5 {[%clk 0:00:03]}  gxf5 {[%clk 0:00:07]} 44. Bh5 {[%clk 0:00:04]}  Bb5 {[%clk 0:00:06]} 45. Be2 {[%clk 0:00:03]}  Ba4 {[%clk 0:00:05]} 46. Rb2 {[%clk 0:00:03]}  Rh8 {[%clk 0:00:05]} 47. Ka2 {[%clk 0:00:03]}  Bc6 {[%clk 0:00:05]} 48. Bc3 {[%clk 0:00:03]}  Rh2 {[%clk 0:00:04]} 49. Be5 {[%clk 0:00:02]}  Rh3 {[%clk 0:00:04]} 50. Bc4 {[%clk 0:00:02]}  Bxc5 {[%clk 0:00:04]} 51. Be6+ {[%clk 0:00:03]}  Bd7 {[%clk 0:00:04]} 52. Bd5 {[%clk 0:00:03]}  Bc6 {[%clk 0:00:04]} 53. Be6+ {[%clk 0:00:03]}  Bd7 {[%clk 0:00:04]} 54. Bd5 {[%clk 0:00:04]}  b5 {[%clk 0:00:04]} 55. Rc2 {[%clk 0:00:04]}  Kd8 {[%clk 0:00:03]} 56. Rxc5 {[%clk 0:00:04]}  Rd3 {[%clk 0:00:03]} 57. Bb7 {[%clk 0:00:03]}  Be6+ {[%clk 0:00:02]} 58. Kb2 {[%clk 0:00:03]}  Rd2+ {[%clk 0:00:03]} 59. Kc1 {[%clk 0:00:03]}  Rd7 {[%clk 0:00:03]} 60. Bf6+ {[%clk 0:00:03]}  Ke8 {[%clk 0:00:03]} 61. Bc6 {[%clk 0:00:04]}  e3 {[%clk 0:00:03]} 62. Bxd7+ {[%clk 0:00:04]}  Bxd7 {[%clk 0:00:04]} 63. Re5+ {[%clk 0:00:05]}  Kf7 {[%clk 0:00:04]} 64. Bh4 {[%clk 0:00:05]}  Bc6 {[%clk 0:00:04]} 65. Rxe3 {[%clk 0:00:06]}  Bd5 {[%clk 0:00:05]} 66. Kb2 {[%clk 0:00:07]}  Kg6 {[%clk 0:00:05]} 67. Re5 {[%clk 0:00:07]}  Be4 {[%clk 0:00:05]} 68. Bg5 {[%clk 0:00:07]}  Kh5 {[%clk 0:00:06]} 69. Re6 {[%clk 0:00:08]}  a5 {[%clk 0:00:06]} 70. Rb6 {[%clk 0:00:08]}  Bd3 {[%clk 0:00:06]} 71. Ra6 {[%clk 0:00:08]}  a4 {[%clk 0:00:06]} 72. Be7 {[%clk 0:00:08]}  Kg4 {[%clk 0:00:06]} 73. Ra5 {[%clk 0:00:08]}  Bc4 {[%clk 0:00:06]} 74. Bd6 {[%clk 0:00:07]}  Kf3 {[%clk 0:00:06]} 75. Kc3 {[%clk 0:00:07]}  Be2 {[%clk 0:00:06]} 76. Be5 {[%clk 0:00:07]}  Bf1 {[%clk 0:00:06]} 77. Kb4 {[%clk 0:00:08]}  Bd3 {[%clk 0:00:06]} 78. Ra8 {[%clk 0:00:08]}  Be2 {[%clk 0:00:06]} 79. Ra7 {[%clk 0:00:09]}  Bd3 {[%clk 0:00:06]} 80. Kc5 {[%clk 0:00:09]}  Ke4 {[%clk 0:00:05]} 81. Bd6 {[%clk 0:00:10]}  Kf3 {[%clk 0:00:05]} 82. Ra5 {[%clk 0:00:09]}  Be2 {[%clk 0:00:03]} 83. Kb6 {[%clk 0:00:09]}  Bd3 {[%clk 0:00:03]} 84. Kc7 {[%clk 0:00:10]}  Ke4 {[%clk 0:00:03]} 85. Kd7 {[%clk 0:00:10]}  Kd5 {[%clk 0:00:03]} 86. Be5 {[%clk 0:00:09]}  Kc5 {[%clk 0:00:03]} 87. Bd6+ {[%clk 0:00:09]}  Kb6 {[%clk 0:00:03]} 88. Ra8 {[%clk 0:00:07]}  Kb7 {[%clk 0:00:03]} 89. Rb8+ {[%clk 0:00:07]}  Ka7 {[%clk 0:00:03]} 90. Ke6 {[%clk 0:00:08]}  Bc4+ {[%clk 0:00:03]} 91. Ke5 {[%clk 0:00:08]}  a3 {[%clk 0:00:03]} 92. Bxa3 {[%clk 0:00:02]}  Kxb8 {[%clk 0:00:03]} 93. Kd6 {[%clk 0:00:02]}  Kb7 {[%clk 0:00:03]} 94. Bb4 {[%clk 0:00:02]}  Kb6 {[%clk 0:00:03]} 95. Ke5 {[%clk 0:00:02]}  Bd3 {[%clk 0:00:03]} 96. Kd4 {[%clk 0:00:03]}  Be4 {[%clk 0:00:04]} 97. Ke5 {[%clk 0:00:03]}  Kc6 {[%clk 0:00:04]} 98. Kd4 {[%clk 0:00:04]}  Bc2 {[%clk 0:00:04]} 99. Ke5 {[%clk 0:00:04]}  Bb1 {[%clk 0:00:04]} 100. Kd4 {[%clk 0:00:05]}  Be4 {[%clk 0:00:05]} 101. Ke5 {[%clk 0:00:05]}  Kd7 {[%clk 0:00:05]} 102. Kd4 {[%clk 0:00:06]}  Ke6 {[%clk 0:00:05]} 103. Ke3 {[%clk 0:00:06]}  Kd5 {[%clk 0:00:06]} 104. Bf8 {[%clk 0:00:05]}  Kc4 {[%clk 0:00:06]} 105. Kd2 {[%clk 0:00:06]}  Kb3 {[%clk 0:00:06]} 106. Kc1 {[%clk 0:00:07]}  b4 {[%clk 0:00:06]} 107. Bg7 {[%clk 0:00:06]}  Ka3 {[%clk 0:00:06]} 108. Bh8 {[%clk 0:00:07]}  Kb3 {[%clk 0:00:06]} 109. Bg7 {[%clk 0:00:08]}  Bd5 {[%clk 0:00:07]} 110. Bh8 {[%clk 0:00:08]}  Kc4 {[%clk 0:00:07]} 111. Bg7 {[%clk 0:00:09]}  Kd3 {[%clk 0:00:07]} 112. Be5 {[%clk 0:00:09]}  Bc4 {[%clk 0:00:07]} 113. Kb1 {[%clk 0:00:10]}  Bb3 {[%clk 0:00:07]} 114. Kb2 {[%clk 0:00:10]}  Bd1 {[%clk 0:00:07]} 115. Bd6 {[%clk 0:00:10]}  Kc4 {[%clk 0:00:07]} 116. Be5 {[%clk 0:00:10]}  Be2 {[%clk 0:00:07]} 117. Kc1 {[%clk 0:00:10]}  Kb3 {[%clk 0:00:07]} 118. Bf6 {[%clk 0:00:10]}  Bf3 {[%clk 0:00:07]} 119. Be5 {[%clk 0:00:11]}  Be4 {[%clk 0:00:08]} 120. Bf6 {[%clk 0:00:11]}  Bc6 {[%clk 0:00:08]} 121. Be5 {[%clk 0:00:12]}  Ka3 {[%clk 0:00:08]} 122. Bf6 {[%clk 0:00:12]}  b3 {[%clk 0:00:08]} 123. Bg7 {[%clk 0:00:12]}  Kb4 {[%clk 0:00:08]} 124. Bh8 {[%clk 0:00:12]}  Bd5 {[%clk 0:00:09]} 125. Kb2 {[%clk 0:00:12]}  Kc4 {[%clk 0:00:09]} 126. Be5 {[%clk 0:00:12]}  Kd3 {[%clk 0:00:10]} 127. Bb8 {[%clk 0:00:13]}  Ke4 {[%clk 0:00:10]} 128. Bc7 {[%clk 0:00:14]}  Bc4 {[%clk 0:00:10]} 129. Bb8 {[%clk 0:00:15]}  Kd3 {[%clk 0:00:10]} 130. Bc7 {[%clk 0:00:15]}  Be6 {[%clk 0:00:11]} 131. Bb8 {[%clk 0:00:16]}  Kc4 {[%clk 0:00:11]} 132. Bc7 {[%clk 0:00:11]}  Kd5 {[%clk 0:00:12]} 133. Bb8 {[%clk 0:00:10]}  Bg8 {[%clk 0:00:13]} 134. Be5 {[%clk 0:00:11]}  Kc5 {[%clk 0:00:14]} 135. Bb8 {[%clk 0:00:11]}  Bf7 {[%clk 0:00:15]} 136. Be5 {[%clk 0:00:11]}  Kc6 {[%clk 0:00:16]} 137. Bb8 {[%clk 0:00:11]}  Be6 {[%clk 0:00:17]} 138. Be5 {[%clk 0:00:12]}  Kb6 {[%clk 0:00:18]} 139. Bd6 {[%clk 0:00:12]}  Bc4 {[%clk 0:00:19]} 140. Be5 {[%clk 0:00:12]}  Bd5 {[%clk 0:00:19]} 141. Bd6 {[%clk 0:00:07]}  Kb7 {[%clk 0:00:20]} 142. Be5 {[%clk 0:00:07]}  Bf7 {[%clk 0:00:21]} 143. Bd6 {[%clk 0:00:07]}  Kc8 {[%clk 0:00:22]} 144. Be5 {[%clk 0:00:08]}  Bg8 {[%clk 0:00:23]} 145. Bd4 {[%clk 0:00:08]}  Kd7 {[%clk 0:00:24]} 146. Be5 {[%clk 0:00:09]}  Be6 {[%clk 0:00:25]} 147. Bd4 {[%clk 0:00:09]}  Kd6 {[%clk 0:00:25]} 148. Be5+ {[%clk 0:00:10]}  Kd5 {[%clk 0:00:26]} 149. Bb8 {[%clk 0:00:10]}  Bf7 {[%clk 0:00:27]} 150. Bc7 {[%clk 0:00:10]}  Bh5 {[%clk 0:00:27]} 151. Bb8 {[%clk 0:00:11]}  Kc6 {[%clk 0:00:28]} 152. Be5 {[%clk 0:00:10]}  Bf7 {[%clk 0:00:28]} 153. Bd4 {[%clk 0:00:10]}  Kd6 {[%clk 0:00:27]} 154. Be5+ {[%clk 0:00:11]}  Kd7 {[%clk 0:00:28]} 155. Bd4 {[%clk 0:00:11]}  Bd5 {[%clk 0:00:28]} 156. Be5 {[%clk 0:00:12]}  Ke6 {[%clk 0:00:28]} 157. Bd4 {[%clk 0:00:12]}  Kd6 {[%clk 0:00:29]} 158. Be5+ {[%clk 0:00:13]}  Kc5 {[%clk 0:00:29]} 159. Bb8 {[%clk 0:00:13]}  Kc6 {[%clk 0:00:29]} 160. Be5 {[%clk 0:00:13]}  Be4 {[%clk 0:00:30]} 161. Bd4 {[%clk 0:00:13]}  Kd5 {[%clk 0:00:30]} 162. Be5 {[%clk 0:00:14]}  Kc4 {[%clk 0:00:31]} 163. Bb8 {[%clk 0:00:14]}  Bc6 {[%clk 0:00:31]} 164. Be5 {[%clk 0:00:15]}  Kc5 {[%clk 0:00:31]} 165. Bb8 {[%clk 0:00:12]}  Bd7 {[%clk 0:00:31]} 166. Be5 {[%clk 0:00:13]}  Be6 {[%clk 0:00:32]} 167. Bb8 {[%clk 0:00:13]}  Kd5 {[%clk 0:00:32]} 168. Be5 {[%clk 0:00:14]}  Kc6 {[%clk 0:00:32]} 169. Bd4 {[%clk 0:00:14]}  Bd5 {[%clk 0:00:33]} 170. Be5 {[%clk 0:00:15]}  Kb7 {[%clk 0:00:33]} 171. Bd4 {[%clk 0:00:15]}  Kc7 {[%clk 0:00:34]} 172. Be5+ {[%clk 0:00:16]}  Kd7 {[%clk 0:00:34]} 1/2-1/2


[Site "https://www.chess.com"]

[Event "Titled Tuesday Blitz August 15 Late 2023"]
[White "Grossboss19"]
[Black "Buchenau, Frank"]
[BlackFideId "4604350"]
[WhiteElo "2553"]
[BlackElo "2440"]
[Result "1-0"]
[Round "7"]
[TimeControl "180+1"]
[Date "2023.08.15"]
[WhiteClock "0:00:17"]
[BlackClock "0:00:00"]
[Board "73"]

1. e4 {[%clk 0:03:00]}  e6 {[%clk 0:02:59]} 2. Nf3 {[%clk 0:02:50]}  d5 {[%clk 0:02:58]} 3. d3 {[%clk 0:02:51]}  dxe4 {[%clk 0:02:57]} 4. dxe4 {[%clk 0:02:52]}  Qxd1+ {[%clk 0:02:57]} 5. Kxd1 {[%clk 0:02:53]}  Bc5 {[%clk 0:02:57]} 6. Ke1 {[%clk 0:02:50]}  b6 {[%clk 0:02:57]} 7. c3 {[%clk 0:02:49]}  Bb7 {[%clk 0:02:57]} 8. Bd3 {[%clk 0:02:49]}  a5 {[%clk 0:02:57]} 9. Nbd2 {[%clk 0:02:47]}  Nd7 {[%clk 0:02:52]} 10. Nb3 {[%clk 0:02:46]}  a4 {[%clk 0:02:49]} 11. Nbd4 {[%clk 0:02:44]}  e5 {[%clk 0:02:40]} 12. Nb5 {[%clk 0:02:37]}  Rc8 {[%clk 0:02:36]} 13. b4 {[%clk 0:02:34]}  axb3 {[%clk 0:02:30]} 14. axb3 {[%clk 0:02:35]}  c6 {[%clk 0:02:29]} 15. Na3 {[%clk 0:02:31]}  Ra8 {[%clk 0:02:28]} 16. b4 {[%clk 0:02:31]}  Be7 {[%clk 0:02:23]} 17. Bb2 {[%clk 0:02:30]}  Ngf6 {[%clk 0:02:21]} 18. Nc4 {[%clk 0:02:25]}  Rxa1+ {[%clk 0:02:20]} 19. Bxa1 {[%clk 0:02:26]}  Ba6 {[%clk 0:02:15]} 20. Nfd2 {[%clk 0:02:23]}  O-O {[%clk 0:02:03]} 21. Ke2 {[%clk 0:02:20]}  Ra8 {[%clk 0:02:02]} 22. Bb2 {[%clk 0:02:15]}  Bb5 {[%clk 0:02:02]} 23. Ra1 {[%clk 0:02:14]}  Rxa1 {[%clk 0:02:01]} 24. Bxa1 {[%clk 0:02:14]}  Ne8 {[%clk 0:01:43]} 25. Na3 {[%clk 0:02:06]}  Bxd3+ {[%clk 0:01:42]} 26. Kxd3 {[%clk 0:02:07]}  Nc7 {[%clk 0:01:31]} 27. Ndc4 {[%clk 0:01:54]}  Ne6 {[%clk 0:01:21]} 28. g3 {[%clk 0:01:54]}  g6 {[%clk 0:01:17]} 29. Bb2 {[%clk 0:01:53]}  f5 {[%clk 0:01:08]} 30. f3 {[%clk 0:01:52]}  Ng5 {[%clk 0:01:04]} 31. Nd2 {[%clk 0:01:47]}  Kf7 {[%clk 0:00:58]} 32. Nc2 {[%clk 0:01:42]}  h5 {[%clk 0:00:54]} 33. Ne3 {[%clk 0:01:28]}  Ke6 {[%clk 0:00:52]} 34. Bc1 {[%clk 0:01:20]}  b5 {[%clk 0:00:50]} 35. h4 {[%clk 0:01:13]}  Nf7 {[%clk 0:00:46]} 36. Nb3 {[%clk 0:01:11]}  Nd6 {[%clk 0:00:35]} 37. Ba3 {[%clk 0:01:05]}  f4 {[%clk 0:00:34]} 38. gxf4 {[%clk 0:01:02]}  exf4 {[%clk 0:00:33]} 39. Nd4+ {[%clk 0:01:01]}  Kf7 {[%clk 0:00:30]} 40. Ng2 {[%clk 0:00:59]}  Ne5+ {[%clk 0:00:25]} 41. Ke2 {[%clk 0:00:59]}  Ndc4 {[%clk 0:00:24]} 42. Bc1 {[%clk 0:00:57]}  g5 {[%clk 0:00:21]} 43. hxg5 {[%clk 0:00:57]}  Bxg5 {[%clk 0:00:21]} 44. Bxf4 {[%clk 0:00:57]}  Bxf4 {[%clk 0:00:19]} 45. Nxf4 {[%clk 0:00:58]}  h4 {[%clk 0:00:19]} 46. Nh3 {[%clk 0:00:56]}  Kg6 {[%clk 0:00:18]} 47. f4 {[%clk 0:00:55]}  Ng4 {[%clk 0:00:17]} 48. Nxc6 {[%clk 0:00:54]}  Nf6 {[%clk 0:00:15]} 49. Nf2 {[%clk 0:00:46]}  Kh5 {[%clk 0:00:14]} 50. Nd4 {[%clk 0:00:42]}  Ng4 {[%clk 0:00:13]} 51. Nh3 {[%clk 0:00:38]}  Nf6 {[%clk 0:00:11]} 52. e5 {[%clk 0:00:38]}  Nd5 {[%clk 0:00:08]} 53. Nxb5 {[%clk 0:00:30]}  Kg4 {[%clk 0:00:07]} 54. Nf2+ {[%clk 0:00:30]}  Kxf4 {[%clk 0:00:07]} 55. e6 {[%clk 0:00:30]}  Kf5 {[%clk 0:00:07]} 56. Nd4+ {[%clk 0:00:28]}  Kf6 {[%clk 0:00:07]} 57. Ne4+ {[%clk 0:00:27]}  Ke5 {[%clk 0:00:06]} 58. Nf2 {[%clk 0:00:17]}  Nxc3+ {[%clk 0:00:00]} 59. Kd3 {[%clk 0:00:17]} 1-0


[Site "https://www.chess.com"]

[Event "Titled Tuesday Blitz August 15 Late 2023"]
[White "maksimys18"]
[Black "Manukian, Artak"]
[BlackFideId "13301373"]
[WhiteElo "2553"]
[BlackElo "2437"]
[Result "1-0"]
[Round "7"]
[TimeControl "180+1"]
[Date "2023.08.15"]
[WhiteClock "0:02:00"]
[BlackClock "0:01:09"]
[Board "74"]

1. d4 {[%clk 0:03:00]}  c6 {[%clk 0:02:58]} 2. Nf3 {[%clk 0:03:01]}  d5 {[%clk 0:02:58]} 3. c4 {[%clk 0:03:01]}  Nf6 {[%clk 0:02:57]} 4. Nc3 {[%clk 0:03:01]}  e6 {[%clk 0:02:56]} 5. Bg5 {[%clk 0:03:02]}  dxc4 {[%clk 0:02:54]} 6. e4 {[%clk 0:03:01]}  b5 {[%clk 0:02:52]} 7. e5 {[%clk 0:03:02]}  h6 {[%clk 0:02:48]} 8. Bh4 {[%clk 0:03:02]}  g5 {[%clk 0:02:47]} 9. Bg3 {[%clk 0:03:02]}  Nd5 {[%clk 0:02:47]} 10. Be2 {[%clk 0:03:02]}  Bb4 {[%clk 0:02:45]} 11. Rc1 {[%clk 0:03:01]}  Qa5 {[%clk 0:02:46]} 12. O-O {[%clk 0:03:00]}  Bxc3 {[%clk 0:02:37]} 13. bxc3 {[%clk 0:02:59]}  Nxc3 {[%clk 0:02:38]} 14. Qd2 {[%clk 0:03:00]}  Nxe2+ {[%clk 0:02:38]} 15. Qxe2 {[%clk 0:03:01]}  Bb7 {[%clk 0:02:32]} 16. Nd2 {[%clk 0:02:58]}  c5 {[%clk 0:02:27]} 17. Ne4 {[%clk 0:02:55]}  Ke7 {[%clk 0:02:00]} 18. Nd6 {[%clk 0:02:52]}  Bd5 {[%clk 0:01:57]} 19. f4 {[%clk 0:02:48]}  f5 {[%clk 0:01:44]} 20. exf6+ {[%clk 0:02:33]}  Kxd6 {[%clk 0:01:44]} 21. fxg5+ {[%clk 0:02:33]}  Kc6 {[%clk 0:01:44]} 22. Qe5 {[%clk 0:02:22]}  Kb7 {[%clk 0:01:39]} 23. f7 {[%clk 0:02:19]}  Nc6 {[%clk 0:01:36]} 24. Qg7 {[%clk 0:02:11]}  Qxa2 {[%clk 0:01:28]} 25. f8=Q+ {[%clk 0:02:05]}  Kb6 {[%clk 0:01:24]} 26. Qc7+ {[%clk 0:02:02]}  Ka6 {[%clk 0:01:09]} 27. Ra1 {[%clk 0:02:00]} 1-0


[Site "https://www.chess.com"]

[Event "Titled Tuesday Blitz August 15 Late 2023"]
[White "Baghdasaryan, Vahe"]
[Black "Francisco Guecamburu, Candela Be"]
[WhiteFideId "13303139"]
[BlackFideId "160911"]
[WhiteElo "2423"]
[BlackElo "2548"]
[Result "0-1"]
[Round "7"]
[TimeControl "180+1"]
[Date "2023.08.15"]
[WhiteClock "0:00:02"]
[BlackClock "0:00:05"]
[Board "76"]

1. e4 {[%clk 0:03:00]}  Nf6 {[%clk 0:02:56]} 2. e5 {[%clk 0:03:00]}  Nd5 {[%clk 0:02:57]} 3. c4 {[%clk 0:03:01]}  Nb6 {[%clk 0:02:57]} 4. d4 {[%clk 0:03:02]}  d6 {[%clk 0:02:57]} 5. exd6 {[%clk 0:03:03]}  exd6 {[%clk 0:02:52]} 6. Nc3 {[%clk 0:03:03]}  Be7 {[%clk 0:02:52]} 7. Nf3 {[%clk 0:03:03]}  Bg4 {[%clk 0:02:49]} 8. h3 {[%clk 0:03:02]}  Bxf3 {[%clk 0:02:48]} 9. Qxf3 {[%clk 0:03:03]}  Nc6 {[%clk 0:02:48]} 10. Be3 {[%clk 0:03:04]}  O-O {[%clk 0:02:38]} 11. g4 {[%clk 0:02:53]}  f5 {[%clk 0:02:32]} 12. gxf5 {[%clk 0:02:49]}  Qd7 {[%clk 0:02:26]} 13. Bd3 {[%clk 0:02:29]}  Nb4 {[%clk 0:02:19]} 14. Be4 {[%clk 0:02:22]}  c6 {[%clk 0:02:05]} 15. a3 {[%clk 0:02:18]}  d5 {[%clk 0:02:04]} 16. cxd5 {[%clk 0:01:29]}  cxd5 {[%clk 0:02:02]} 17. Bb1 {[%clk 0:01:27]}  Nc6 {[%clk 0:02:00]} 18. Rg1 {[%clk 0:01:12]}  Bf6 {[%clk 0:01:44]} 19. Ba2 {[%clk 0:01:04]}  Nxd4 {[%clk 0:01:31]} 20. Bxd4 {[%clk 0:00:57]}  Bxd4 {[%clk 0:01:32]} 21. Nxd5 {[%clk 0:00:50]}  Kh8 {[%clk 0:01:22]} 22. Qg4 {[%clk 0:00:17]}  Bxb2 {[%clk 0:00:35]} 23. Rb1 {[%clk 0:00:17]}  Nxd5 {[%clk 0:00:30]} 24. Rxb2 {[%clk 0:00:17]}  Rae8+ {[%clk 0:00:26]} 25. Kf1 {[%clk 0:00:17]}  Nf6 {[%clk 0:00:16]} 26. Qf3 {[%clk 0:00:10]}  b6 {[%clk 0:00:13]} 27. Be6 {[%clk 0:00:10]}  Qd4 {[%clk 0:00:13]} 28. Re2 {[%clk 0:00:09]}  a5 {[%clk 0:00:05]} 29. Qg3 {[%clk 0:00:09]}  Nh5 {[%clk 0:00:04]} 30. Qg5 {[%clk 0:00:07]}  Nf4 {[%clk 0:00:05]} 31. Rd2 {[%clk 0:00:05]}  Qa1+ {[%clk 0:00:04]} 32. Rd1 {[%clk 0:00:02]}  Qxd1# {[%clk 0:00:05]} 0-1


[Site "https://www.chess.com"]